bitfinex/quotes_ETHUSD_20240607
["timestamp","ask_amount","ask_price","bid_price","bid_amount"]
[1717756953633,0.666698,3809.9,3809.8,0.0651171]
[1717756953970,0.666698,3809.9,3809.7,0.82681393]
[1717756954196,0.666698,3809.9,3809.8,0.6157011]
[1717756954417,0.666698,3809.9,3809.8,0.61569368]
[1717756956066,0.666698,3809.9,3809.8,0.0651171]
[1717756956266,0.666698,3809.9,3809.6,0.55057658]
[1717756956503,0.666698,3809.9,3809.7,0.06512397]
[1717756956669,0.666698,3809.9,3809.7,0.61570055]
[1717756960104,2.3452,3809.8,3809.7,0.06512397]
[1717756960284,2.3452,3809.8,3809.5,0.55057658]
[1717756960614,0.666698,3809.6,3809.4,0.55057658]
[1717756960816,0.666698,3809.6,3809.5,0.55057658]
[1717756965181,0.666698,3809.6,3809.5,0.55053727]
[1717756965706,0.666698,3809.8,3809.6,2.2856]
[1717756966214,0.666698,3809.8,3809.6,2.83613727]
[1717756967203,2.62475,3809.9,3809.6,0.55053727]
[1717756970635,0.666698,3809.8,3809.6,0.55053727]
[1717756971743,0.666698,3809.8,3809.7,0.55053727]
[1717756974197,0.666698,3809.8,3809.7,0.61555549]
[1717756976492,0.666698,3809.8,3809.7,2.71654104]
[1717756981537,0.666698,3810.0,3809.7,2.71654104]
[1717756981840,0.666698,3810.0,3809.9,0.55080006]
[1717756982158,0.666698,3810.0,3809.9,0.60927199]
[1717756982495,0.666698,3810.0,3809.9,0.05847193]
[1717756983298,8.096698,3810.7,3810.1,2.62455]
[1717756983539,0.666698,3810.7,3810.4,0.55082311]
[1717756983747,0.666698,3810.7,3810.5,0.55082311]
[1717756984042,0.666698,3810.7,3810.6,0.55082311]
[1717756984332,0.666698,3810.7,3810.6,0.058362]
[1717756986418,0.666698,3810.5,3810.4,0.55082311]
[1717756987051,0.666698,3810.7,3810.4,0.55082311]
[1717756988043,0.666698,3810.5,3810.4,0.55082311]
[1717756989121,0.666698,3810.5,3810.4,0.60900803]
[1717756989546,0.666698,3810.5,3810.4,0.05818492]
[1717756990268,1.454698,3810.5,3810.4,0.05818492]
[1717756990567,1.454698,3810.5,3810.3,0.55082311]
[1717756990568,0.666698,3810.3,3810.2,0.55082311]
[1717756991082,0.666698,3810.3,3810.1,0.55082311]
[1717756991538,0.666698,3810.3,3810.2,0.55082311]
[1717756992222,0.666698,3810.3,3810.1,0.55082311]
[1717756993028,0.666698,3810.3,3810.2,0.55082311]
[1717756994156,0.666698,3810.3,3810.1,0.55082311]
[1717756994582,0.666698,3810.3,3810.2,0.55082311]
[1717756996139,0.666698,3810.3,3810.1,0.55082311]
[1717756997037,0.666698,3810.3,3810.0,3.17544311]
[1717756997272,0.666698,3810.3,3810.0,0.55082311]
[1717756997434,4.079198,3810.3,3810.0,0.55082311]
[1717756997635,0.788,3810.1,3809.8,0.55082311]
[1717756998031,1.454698,3810.1,3809.7,0.55082311]
[1717756998470,4.079328,3810.1,3809.7,0.55082311]
[1717756999099,4.079328,3810.1,3809.6,0.55082311]
[1717757000251,0.666698,3809.8,3809.6,0.55082311]
[1717757001077,0.666698,3809.8,3809.7,0.55082311]
[1717757002243,0.666698,3809.8,3809.6,0.55082311]
[1717757002444,0.666698,3809.8,3809.7,0.55082311]
[1717757002858,0.666698,3809.8,3809.6,0.55082311]
[1717757004184,0.666698,3809.8,3809.7,0.05830258]
[1717757004395,0.666698,3810.0,3809.7,0.05830258]
[1717757004757,2.62463,3810.1,3809.7,2.90972569]
[1717757005110,0.666698,3810.0,3809.7,2.90972569]
[1717757005295,0.666698,3810.0,3809.8,0.55082311]
[1717757005662,0.666698,3810.0,3809.9,0.05828885]
[1717757007813,2.62463,3810.1,3809.9,0.05828885]
[1717757008030,0.666698,3810.5,3809.9,2.48338885]
[1717757008176,10.84228,3810.6,3810.0,0.55082311]
[1717757008177,0.666698,3810.3,3810.0,0.55082311]
[1717757008373,0.666698,3810.3,3810.1,0.55082311]
[1717757008685,0.666698,3810.3,3810.1,0.05827512]
[1717757009079,0.666698,3810.3,3810.1,0.60909823]
[1717757010074,0.666698,3810.3,3810.1,0.05827512]
[1717757010701,3.037898,3810.3,3810.1,0.05827512]
[1717757011088,0.666698,3810.0,3809.9,0.55082311]
[1717757011308,0.666698,3810.0,3809.8,0.55082311]
[1717757011513,2.3712,3809.9,3809.8,0.55082311]
[1717757011876,2.3712,3809.9,3809.6,0.82681393]
[1717757011877,2.3712,3809.9,3809.6,0.55082311]
[1717757012080,0.666698,3809.8,3809.7,0.55082311]
[1717757013180,3.291428,3810.0,3809.7,0.55082311]
[1717757014703,0.666698,3809.8,3809.7,0.55082311]
[1717757016592,0.666698,3809.8,3809.6,0.82681393]
[1717757018086,0.666698,3809.8,3809.7,2.65142774]
[1717757018286,0.666698,3810.0,3809.7,2.65142774]
[1717757018482,0.666698,3810.0,3809.8,0.55050299]
[1717757018742,0.666698,3810.0,3809.9,0.55050299]
[1717757019089,0.666698,3810.0,3809.9,0.60687295]
[1717757021121,0.666698,3810.0,3809.9,0.05636996]
[1717757022427,0.666698,3810.0,3809.9,0.60687295]
[1717757029117,0.666698,3810.0,3809.9,0.05636996]
[1717757029563,0.666698,3810.0,3809.7,0.55050299]
[1717757029731,2.925298,3810.0,3809.9,0.05640596]
[1717757030117,0.666698,3809.7,3809.6,0.55050299]
[1717757030515,0.666698,3809.7,3809.6,0.05637767]
[1717757031539,0.666698,3809.7,3809.6,2.70794914]
[1717757032114,0.666698,3809.7,3809.6,2.70711544]
[1717757032427,0.666698,3809.9,3809.6,1.88113521]
[1717757032627,0.666698,3809.9,3809.8,0.55069805]
[1717757033149,0.666698,3809.9,3809.8,0.60706198]
[1717757034158,0.666698,3809.9,3809.8,0.05636393]
[1717757034652,0.666698,3809.9,3809.8,0.05637424]
[1717757034890,4.891,3809.8,3809.7,0.55069805]
[1717757035719,2.6248,3809.8,3809.7,0.55069805]
[1717757040268,3.4128,3809.8,3809.7,0.55069805]
[1717757040978,2.6248,3809.8,3809.7,0.55069805]
[1717757041470,2.6248,3809.8,3809.6,0.82604708]
[1717757041635,2.6248,3809.8,3809.7,2.65078111]
[1717757044275,3.291318,3810.1,3809.7,2.65078111]
[1717757044481,3.291318,3810.1,3809.9,0.55111162]
[1717757044648,3.291318,3810.1,3810.0,0.55111162]
[1717757046676,0.666698,3810.0,3809.9,0.82604708]
[1717757046842,0.666698,3810.0,3809.9,2.65065184]
[1717757047687,2.62462,3810.1,3809.9,2.65065184]
[1717757047996,2.62462,3810.1,3809.9,0.82604708]
[1717757049058,2.62462,3810.1,3810.0,0.05632964]
[1717757055663,2.62462,3810.1,3810.0,2.70694519]
[1717757056152,2.62462,3810.1,3810.0,0.05632964]
[1717757056386,2.62462,3810.1,3810.0,2.70694455]
[1717757057461,2.62462,3810.1,3810.0,0.05632964]
[1717757057892,0.666698,3811.0,3810.0,2.68099964]
[1717757058078,0.75,3810.6,3810.4,0.55110222]
[1717757058287,0.666698,3810.7,3810.5,0.05625415]
[1717757058457,0.666698,3810.7,3810.5,0.60735637]
[1717757059056,0.666698,3810.7,3810.5,0.05625415]
[1717757059597,0.666698,3810.7,3810.5,0.60735637]
[1717757060271,1.454698,3810.7,3810.5,0.05625415]
[1717757060949,4.078908,3810.7,3810.5,0.05625415]
[1717757061173,2.2866,3810.6,3810.5,0.05625415]
[1717757061711,0.666698,3810.4,3810.3,0.55110222]
[1717757062072,0.666698,3810.4,3810.2,0.82604708]
[1717757062275,0.666698,3810.4,3810.3,0.55079191]
[1717757062819,0.666698,3810.6,3810.3,0.55079191]
[1717757063022,0.666698,3810.6,3810.4,0.550784]
[1717757064210,0.666698,3810.6,3810.5,0.05625415]
[1717757064615,0.666698,3810.6,3810.5,0.60703815]
[1717757067525,0.666698,3810.6,3810.5,0.05625415]
[1717757068095,0.666698,3810.6,3810.5,0.60703815]
[1717757069213,3.290728,3811.0,3810.5,3.23134815]
[1717757069390,0.666698,3811.0,3810.7,0.55030088]
[1717757069720,0.666698,3811.0,3810.9,0.55030088]
[1717757070135,0.666698,3811.0,3810.9,0.0561212]
[1717757070825,3.6985308,3811.0,3810.9,0.0561212]
[1717757071032,0.666698,3810.6,3810.3,1.37634796]
[1717757071212,1.454698,3810.6,3810.3,0.55030088]
[1717757071404,1.454698,3810.6,3810.4,0.05615551]
[1717757072699,4.078958,3810.6,3810.4,0.05615551]
[1717757073310,4.078958,3810.6,3810.2,0.55030088]
[1717757073513,0.666698,3810.4,3810.3,0.05616238]
[1717757073722,0.666698,3810.4,3810.2,0.55030088]
[1717757074040,0.666698,3810.4,3810.3,0.05616238]
[1717757074205,3.290958,3810.6,3810.3,0.05616238]
[1717757074712,3.290958,3810.6,3810.4,0.05615551]
[1717757074909,3.290958,3810.6,3810.2,3.00630088]
[1717757075241,3.290958,3810.6,3810.3,0.05616238]
[1717757075537,3.290958,3810.6,3810.2,3.00630088]
[1717757076038,3.290958,3810.6,3810.3,0.05616238]
[1717757076402,3.290958,3810.6,3810.2,3.00630088]
[1717757076739,3.290958,3810.6,3810.3,0.60646326]
[1717757079212,3.290958,3810.6,3810.3,0.05616238]
[1717757079762,3.290958,3810.6,3810.4,0.05620441]
[1717757080193,3.290958,3810.6,3810.2,3.00630088]
[1717757080348,3.290958,3810.6,3810.5,0.05619755]
[1717757080545,3.290958,3810.6,3810.2,3.00630088]
[1717757080791,3.290958,3810.6,3810.5,0.05619755]
[1717757081093,3.290958,3810.6,3810.3,0.55030088]
[1717757081302,3.290958,3810.6,3810.5,0.05619755]
[1717757081462,3.290958,3810.6,3810.3,0.55030088]
[1717757081654,3.290958,3810.6,3810.4,0.05620441]
[1717757083775,3.290958,3810.6,3810.4,0.60650529]
[1717757086869,4.078958,3810.6,3810.4,0.60650529]
[1717757087656,4.078958,3810.6,3810.4,0.05620441]
[1717757088194,4.078958,3810.6,3810.4,0.60650529]
[1717757089110,4.078958,3810.6,3810.4,0.05620441]
[1717757089693,4.078958,3810.6,3810.4,0.60650529]
[1717757089880,4.078958,3810.6,3810.4,0.05620441]
[1717757090283,4.078958,3810.6,3810.4,0.60650529]
[1717757094204,4.078958,3810.6,3810.5,0.55030088]
[1717757094699,4.078958,3810.6,3810.5,0.606537]
[1717757100087,4.078958,3810.6,3810.5,0.05623612]
[1717757100400,3.290958,3810.6,3810.5,0.05623612]
[1717757101413,3.6988538,3810.6,3810.5,0.05623612]
[1717757101910,3.291088,3810.4,3810.2,0.55098543]
[1717757102062,4.079088,3810.4,3810.2,0.55098543]
[1717757102683,4.079088,3810.4,3810.2,0.82604708]
[1717757106814,3.291088,3810.4,3810.2,0.82604708]
[1717757109172,3.291088,3810.4,3810.3,0.05620356]
[1717757109720,3.291088,3810.4,3810.2,0.82604708]
[1717757110050,3.291088,3810.4,3810.3,0.05620356]
[1717757110212,4.079088,3810.4,3810.3,0.60723388]
[1717757110403,4.079088,3810.4,3810.3,0.55103032]
[1717757110723,4.079088,3810.4,3810.3,0.60723388]
[1717757111495,3.291088,3810.4,3810.3,0.60723388]
[1717757111698,4.079088,3810.4,3810.3,0.60723388]
[1717757113800,4.079088,3810.4,3810.3,0.05620356]
[1717757114231,4.079088,3810.4,3810.2,0.55103032]
[1717757114430,4.079088,3810.4,3810.3,0.60726988]
[1717757114729,4.7164568,3810.4,3810.3,0.05623956]
[1717757114893,2.62453,3810.2,3810.1,0.55103032]
[1717757115229,4.079228,3810.2,3810.1,0.60728875]
[1717757118820,7.3411408,3810.2,3810.1,0.60728875]
[1717757119018,9.6720408,3810.2,3810.1,0.05625843]
[1717757119525,0.666698,3809.7,3809.6,0.55103032]
[1717757119840,1.454698,3809.7,3809.6,0.55103032]
[1717757120198,2.6248,3809.8,3809.6,0.55103032]
[1717757120401,0.666698,3809.7,3809.6,0.55103032]
[1717757120636,0.666698,3809.7,3809.6,2.65087632]
[1717757122211,0.666698,3809.7,3809.5,0.82604708]
[1717757122618,2.6248,3809.8,3809.6,2.6507307]
[1717757122842,2.6248,3809.8,3809.7,0.55062521]
[1717757124004,4.079358,3810.1,3809.7,0.55062521]
[1717757124327,2.62445,3810.4,3809.8,2.82532521]
[1717757124507,2.62445,3810.4,3810.1,0.55062521]
[1717757124709,2.62445,3810.4,3810.2,0.60521612]
[1717757128024,0.666698,3810.5,3810.2,2.98271612]
[1717757128730,3.290938,3810.7,3810.2,2.98271612]
[1717757129106,4.078938,3810.7,3810.2,2.98271612]
[1717757132251,3.41233,3810.5,3810.2,0.60521612]
[1717757132427,0.666698,3810.4,3810.2,0.60521612]
[1717757135059,0.666698,3810.4,3810.2,0.05459091]
[1717757135511,0.666698,3810.4,3810.2,0.60521612]
[1717757136256,0.666698,3810.4,3810.2,0.05459091]
[1717757136621,0.666698,3810.4,3810.2,0.60521612]
[1717757137456,2.62446,3810.3,3810.2,0.60521612]
[1717757137758,2.62446,3810.3,3810.2,0.05459091]
[1717757139223,2.62446,3810.3,3810.2,0.60521612]
[1717757141033,3.41246,3810.3,3810.2,0.05459091]
[1717757141984,2.62427,3810.6,3810.0,0.55062521]
[1717757142277,0.75,3810.8,3810.1,2.96236823]
[1717757142483,1.454698,3810.9,3810.1,2.96236823]
[1717757142642,0.666698,3810.6,3810.4,0.55062521]
[1717757143027,0.666698,3810.6,3810.5,0.05431557]
[1717757145640,0.666698,3810.6,3810.5,0.60494078]
[1717757150563,0.666698,3810.6,3810.5,0.05431557]
[1717757151034,0.666698,3810.6,3810.5,0.60494078]
[1717757153049,0.666698,3810.6,3810.5,0.05431557]
[1717757156120,3.290948,3810.6,3810.5,0.05431557]
[1717757156462,6.7900428,3810.6,3810.5,0.05431557]
[1717757156684,0.666698,3810.3,3810.2,0.55062521]
[1717757156898,0.666698,3810.3,3810.1,0.55062521]
[1717757160800,3.291228,3810.3,3810.1,0.55062521]
[1717757161213,0.666698,3810.1,3809.9,0.82604708]
[1717757162805,0.666698,3810.1,3810.0,0.55061908]
[1717757162966,0.666698,3810.1,3809.9,0.82604708]
[1717757164515,0.666698,3810.1,3810.0,0.55063391]
[1717757165387,0.666698,3810.1,3809.9,0.82604708]
[1717757166275,0.666698,3810.1,3810.0,2.65060306]
[1717757167593,0.666698,3810.1,3809.9,0.82604708]
[1717757168381,0.666698,3810.1,3810.0,2.65062575]
[1717757169280,0.666698,3810.1,3810.0,2.70328619]
[1717757173517,2.62453,3810.3,3810.0,2.70328619]
[1717757173718,2.62453,3810.3,3810.2,0.55098689]
[1717757173877,3.291228,3810.3,3810.2,0.55098689]
[1717757174110,3.291228,3810.3,3810.2,0.60358739]
[1717757174650,3.291228,3810.3,3810.2,0.0526005]
[1717757179924,0.666698,3810.3,3810.2,0.0526005]
[1717757189013,4.079028,3810.5,3810.2,0.0526005]
[1717757189215,4.079028,3810.5,3810.3,0.55099445]
[1717757189382,4.079028,3810.5,3810.4,0.05259447]
[1717757191192,4.079028,3810.5,3810.4,0.60358892]
[1717757191395,4.079028,3810.5,3810.4,0.05259447]
[1717757191775,4.079028,3810.5,3810.4,0.60358892]
[1717757194618,0.666698,3810.5,3810.4,0.60358892]
[1717757194905,8.884698,3810.9,3810.4,2.67698447]
[1717757195119,8.884698,3810.9,3810.6,0.55105943]
[1717757195425,8.884698,3810.9,3810.7,0.60182787]
[1717757196010,8.096698,3810.9,3810.7,0.60182787]
[1717757196172,8.884698,3810.9,3810.7,0.60182787]
[1717757196381,1.454698,3810.9,3810.7,0.60182787]
[1717757198074,0.666698,3811.1,3810.7,0.60182787]
[1717757198274,0.666698,3811.1,3810.8,0.55105943]
[1717757198581,0.666698,3811.1,3810.9,0.05075472]
[1717757198770,0.666698,3811.1,3811.0,0.55105943]
[1717757198970,0.666698,3811.1,3811.0,0.60180729]
[1717757200281,1.454698,3811.1,3811.0,0.60180729]
[1717757200479,1.454698,3811.1,3811.0,0.05074786]
[1717757201301,1.454698,3811.1,3810.8,0.55105943]
[1717757201504,1.454698,3811.1,3811.0,0.05060688]
[1717757201691,1.454698,3811.1,3810.9,0.05061374]
[1717757201892,1.454698,3811.1,3811.0,0.05060688]
[1717757202316,1.454698,3811.1,3810.8,0.55105943]
[1717757202614,0.666698,3810.9,3810.8,0.55105943]
[1717757202979,3.290558,3811.2,3810.8,0.55105943]
[1717757203179,0.666698,3811.0,3810.8,0.55105943]
[1717757205344,0.666698,3811.0,3810.7,0.55105943]
[1717757206481,0.788,3811.1,3810.7,0.55105943]
[1717757207781,0.666698,3811.0,3810.7,0.55105943]
[1717757214021,0.666698,3811.0,3810.8,0.05047194]
[1717757214341,0.666698,3811.0,3810.7,0.55105943]
[1717757214522,0.666698,3811.0,3810.9,0.05046508]
[1717757215017,0.666698,3811.0,3810.7,0.55105943]
[1717757215219,0.666698,3811.0,3810.8,0.05047194]
[1717757215423,0.666698,3811.0,3810.7,0.55105943]
[1717757215748,0.666698,3811.0,3810.8,0.05047194]
[1717757216132,0.666698,3811.0,3810.7,0.55105943]
[1717757216334,0.666698,3811.0,3810.9,0.05046508]
[1717757217438,0.666698,3811.0,3810.7,0.55105943]
[1717757217745,0.666698,3811.0,3810.8,0.05047194]
[1717757218109,0.666698,3811.0,3810.7,0.55105943]
[1717757218312,0.666698,3811.0,3810.9,0.05046508]
[1717757218511,0.666698,3811.0,3810.8,0.05047194]
[1717757218712,0.666698,3811.0,3810.9,0.05046508]
[1717757219108,0.666698,3811.0,3810.7,0.55105943]
[1717757219447,0.666698,3811.0,3810.9,2.4828]
[1717757219648,0.666698,3811.0,3810.9,2.53326508]
[1717757220247,0.666698,3811.0,3810.9,3.08432451]
[1717757222057,0.666698,3811.0,3810.9,0.60152451]
[1717757222870,1.454698,3811.3,3811.0,2.2691]
[1717757223345,1.454698,3811.3,3811.1,0.05042059]
[1717757224118,0.666698,3811.5,3811.1,2.31952059]
[1717757224556,0.666698,3811.5,3811.1,2.87058002]
[1717757224759,0.666698,3811.5,3811.2,0.55105943]
[1717757225146,0.666698,3811.5,3811.3,0.05036586]
[1717757225522,0.666698,3811.5,3811.1,2.82015943]
[1717757225732,0.666698,3811.5,3811.4,0.050359]
[1717757225966,0.666698,3811.5,3811.2,4.93614]
[1717757226164,0.666698,3811.8,3811.4,0.050359]
[1717757226322,0.666698,3811.8,3811.4,2.62369]
[1717757226522,0.666698,3811.8,3811.5,0.05035214]
[1717757227072,0.666698,3811.8,3811.6,0.55105943]
[1717757227222,0.666698,3811.8,3811.7,0.05027693]
[1717757227422,0.666698,3811.8,3811.5,0.55105943]
[1717757227623,0.666698,3811.8,3811.6,0.05028379]
[1717757227856,0.666698,3811.8,3811.4,3.17474943]
[1717757228057,0.666698,3811.8,3811.5,0.05029065]
[1717757228837,0.666698,3811.8,3811.6,2.4886]
[1717757229044,0.666698,3811.8,3811.7,0.05027693]
[1717757229525,0.666698,3812.2,3811.7,0.05027693]
[1717757229731,0.666698,3812.0,3811.7,0.05027693]
[1717757234861,0.666698,3812.2,3811.8,2.62342]
[1717757235159,0.666698,3812.2,3811.9,0.05026321]
[1717757240383,0.666698,3812.2,3812.0,5.09176]
[1717757240650,0.666698,3812.2,3812.1,0.04995742]
[1717757240860,0.666698,3812.2,3811.7,3.17448943]
[1717757241058,0.666698,3812.2,3811.7,2.62343]
[1717757241264,0.666698,3812.2,3811.8,0.04997799]
[1717757246469,0.666698,3812.2,3811.9,2.62335]
[1717757246866,0.666698,3812.2,3812.0,0.04996427]
[1717757249365,0.666698,3812.2,3811.6,2.62352]
[1717757249568,0.666698,3812.0,3811.6,2.62352]
[1717757250375,0.666698,3811.8,3811.5,3.01955943]
[1717757250575,0.666698,3811.8,3811.5,2.4685]
[1717757255214,0.666698,3811.8,3811.5,3.01955943]
[1717757255535,0.666698,3812.1,3811.5,5.64318943]
[1717757258118,0.666698,3812.1,3811.6,0.55105943]
[1717757258587,0.666698,3812.1,3811.7,0.55105943]
[1717757259233,0.666698,3812.1,3811.8,0.04976156]
[1717757261603,0.666698,3812.1,3811.8,0.60082099]
[1717757262729,0.666698,3812.1,3811.9,0.55105943]
[1717757262892,0.666698,3812.1,3812.0,0.04974784]
[1717757263331,0.666698,3812.1,3812.0,0.60080727]
[1717757264121,0.666698,3812.1,3812.0,0.04974784]
[1717757264360,0.666698,3812.1,3812.0,0.60080727]
[1717757271221,0.666698,3812.1,3812.0,0.04974784]
[1717757273558,0.666698,3812.1,3812.0,0.60056102]
[1717757275260,0.666698,3812.1,3812.0,0.04974784]
[1717757275662,0.666698,3812.1,3812.0,0.60066927]
[1717757276770,1.454698,3812.1,3812.0,0.60066927]
[1717757277636,1.454698,3812.1,3812.0,0.04974784]
[1717757278634,1.454698,3812.1,3812.0,2.69939724]
[1717757279162,0.666698,3812.1,3812.0,2.69939724]
[1717757280530,0.666698,3812.1,3812.0,5.04979724]
[1717757281226,0.666698,3812.1,3812.0,4.22375016]
[1717757284854,4.077708,3812.5,3812.0,7.95014106]
[1717757285059,4.077708,3812.5,3812.4,0.55067862]
[1717757285382,4.077708,3812.5,3812.4,0.60028123]
[1717757287641,0.666698,3812.5,3812.4,0.60028123]
[1717757287836,1.454698,3812.5,3812.4,0.60028123]
[1717757289303,3.743298,3812.5,3812.4,0.04960261]
[1717757290044,3.743298,3812.5,3812.3,0.55067862]
[1717757290243,2.955298,3812.5,3812.4,0.04960261]
[1717757290465,3.743298,3812.5,3812.4,0.04960261]
[1717757290666,0.666698,3812.3,3812.2,0.55067862]
[1717757290979,0.666698,3812.3,3812.2,0.60029495]
[1717757291690,0.666698,3812.3,3812.2,0.04961633]
[1717757291878,3.077718,3812.4,3812.2,0.60017803]
[1717757298107,3.077718,3812.4,3812.2,0.04961633]
[1717757298589,3.077718,3812.4,3812.2,0.60017803]
[1717757301009,3.6143498,3812.4,3812.2,0.60017803]
[1717757301209,3.1814,3812.3,3812.2,0.04961633]
[1717757301590,2.62317,3812.2,3811.9,0.5505617]
[1717757301794,2.62329,3812.0,3811.8,0.5505617]
[1717757301992,0.788,3811.9,3811.8,0.5505617]
[1717757304271,0.788,3811.9,3811.8,0.60022079]
[1717757304695,0.788,3811.9,3811.8,0.04965909]
[1717757305652,2.62329,3812.0,3811.8,0.04965909]
[1717757305911,0.788,3811.9,3811.8,0.04965909]
[1717757310773,2.289718,3812.4,3811.8,0.04965909]
[1717757311012,0.788,3812.1,3811.8,2.88982079]
[1717757311307,0.788,3812.1,3812.0,0.5505617]
[1717757311510,2.62329,3812.0,3811.9,0.5505617]
[1717757311669,2.62329,3812.0,3811.7,0.5505617]
[1717757311872,0.788,3811.9,3811.7,0.5505617]
[1717757317679,2.62329,3812.0,3811.7,0.5505617]
[1717757317882,0.788,3811.9,3811.7,0.5505617]
[1717757318081,0.788,3811.9,3811.8,0.5505617]
[1717757319222,0.788,3811.9,3811.8,0.60032326]
[1717757319612,0.788,3811.9,3811.8,0.04976156]
[1717757320710,2.62343,3811.8,3811.6,0.5505617]
[1717757324653,2.62343,3811.8,3811.7,0.5505617]
[1717757325741,2.62343,3811.8,3811.6,0.5505617]
[1717757326151,2.62343,3811.8,3811.7,0.5505617]
[1717757326860,2.62343,3811.8,3811.6,0.5505617]
[1717757327652,0.788,3811.7,3811.6,0.5505617]
[1717757329029,2.62357,3811.6,3811.4,0.5505617]
[1717757329235,0.788,3811.5,3811.4,0.5505617]
[1717757329435,0.788,3811.5,3811.3,0.5505617]
[1717757331439,2.6237,3811.4,3811.2,0.5505617]
[1717757332582,0.788,3811.3,3811.1,0.5505617]
[1717757332877,2.62384,3811.2,3811.1,0.5505617]
[1717757334272,2.62384,3811.2,3811.1,0.60037642]
[1717757334450,2.62384,3811.2,3811.1,0.04981472]
[1717757335375,2.62403,3811.0,3810.8,0.5505617]
[1717757335535,2.62403,3811.0,3810.9,0.04982844]
[1717757335536,3.41203,3811.0,3810.9,0.04982844]
[1717757337662,3.41203,3811.0,3810.6,0.5505617]
[1717757337663,2.62418,3810.8,3810.6,0.5505617]
[1717757337860,3.41218,3810.8,3810.6,0.5505617]
[1717757338588,2.62418,3810.8,3810.6,0.5505617]
[1717757338757,3.41218,3810.8,3810.6,0.5505617]
[1717757341750,2.62418,3810.8,3810.6,0.5505617]
[1717757341947,3.41218,3810.8,3810.6,0.5505617]
[1717757342886,2.62418,3810.8,3810.6,0.5505617]
[1717757343990,2.62396,3811.1,3810.7,2.2947]
[1717757344188,2.62374,3811.4,3810.8,0.54988253]
[1717757344350,3.41174,3811.4,3810.9,0.54988253]
[1717757344551,3.41174,3811.4,3810.8,0.54988253]
[1717757344757,2.62374,3811.4,3810.8,0.54988253]
[1717757344952,7.43,3811.6,3810.9,0.54988253]
[1717757345189,7.43,3811.6,3811.1,0.54988253]
[1717757345496,7.43,3811.6,3811.2,3.04408253]
[1717757346589,7.43,3811.6,3811.3,0.54988253]
[1717757348687,2.62351,3811.7,3811.3,0.54988253]
[1717757349181,2.62351,3811.7,3811.4,0.05011183]
[1717757352423,3.41151,3811.7,3811.2,3.04408253]
[1717757352587,3.41151,3811.7,3811.5,0.05010497]
[1717757352921,3.41151,3811.7,3811.2,0.54988253]
[1717757353106,0.788,3811.4,3811.1,0.54988253]
[1717757355726,2.62366,3811.5,3811.1,0.54988253]
[1717757356018,3.41166,3811.5,3811.0,1.37590046]
[1717757356186,3.41166,3811.5,3811.1,0.54988253]
[1717757361318,3.41166,3811.5,3811.0,0.54988253]
[1717757361523,3.41166,3811.5,3811.1,0.54988253]
[1717757361711,3.41166,3811.5,3811.0,0.54988253]
[1717757362046,0.788,3811.3,3811.0,0.54988253]
[1717757362183,3.4118,3811.3,3811.0,0.54988253]
[1717757362924,2.6238,3811.3,3811.0,0.54988253]
[1717757363099,2.6238,3811.3,3811.1,0.54988253]
[1717757363501,2.6238,3811.3,3811.2,0.54988253]
[1717757364230,2.6238,3811.3,3811.2,0.59994401]
[1717757364397,0.788,3811.5,3811.2,0.59994401]
[1717757372091,0.788,3811.5,3811.3,0.54988253]
[1717757372292,0.788,3811.5,3811.3,0.59993715]
[1717757376393,0.788,3811.5,3811.3,0.05005462]
[1717757376896,0.788,3811.5,3811.4,0.05008366]
[1717757377303,0.788,3811.5,3811.2,0.54988253]
[1717757377501,0.788,3811.5,3811.4,0.05008366]
[1717757377673,0.788,3811.5,3811.3,0.59997305]
[1717757377878,0.788,3811.5,3811.4,0.05008366]
[1717757384284,0.788,3811.5,3811.4,0.59996619]
[1717757384677,0.788,3811.5,3811.4,0.05008366]
[1717757387791,0.788,3811.5,3811.4,0.59996619]
[1717757388214,0.788,3811.5,3811.4,0.05008366]
[1717757388426,0.788,3811.5,3811.4,0.59996619]
[1717757396808,1.538,3811.5,3811.4,0.59996619]
[1717757397711,0.788,3811.5,3811.4,0.59996619]
[1717757398380,0.788,3811.5,3811.4,0.05008366]
[1717757407200,2.62362,3811.6,3811.4,0.05008366]
[1717757407535,2.62362,3811.6,3811.5,0.55107122]
[1717757407732,2.62362,3811.6,3811.5,0.60119669]
[1717757407944,2.62362,3811.6,3811.5,0.05012547]
[1717757408535,2.62362,3811.6,3811.5,0.60122003]
[1717757417058,8.65602334,3811.6,3811.5,0.05012547]
[1717757417359,2.62384,3811.2,3811.1,0.55109456]
[1717757417506,3.41184,3811.2,3811.1,0.55109456]
[1717757417926,3.41184,3811.2,3811.1,0.55124012]
[1717757418132,3.41184,3811.2,3811.1,0.55116773]
[1717757419617,5.67234,3811.2,3811.1,0.55116773]
[1717757419814,5.67234,3811.2,3811.0,0.55116773]
[1717757419815,6.013524,3811.2,3811.0,0.55116773]
[1717757420032,2.62398,3811.0,3810.8,0.55116773]
[1717757420232,2.62412,3810.8,3810.6,0.55116773]
[1717757420445,1.7267504,3810.9,3810.5,0.55116773]
[1717757420446,2.62425,3810.6,3810.5,0.55116773]
[1717757420740,3.41225,3810.6,3810.5,0.55116773]
[1717757420949,3.41225,3810.6,3810.4,0.55116773]
[1717757421247,3.41225,3810.6,3810.3,0.55116773]
[1717757421248,0.788,3810.5,3810.3,0.55116773]
[1717757422335,0.788,3810.5,3810.2,0.55116773]
[1717757424123,0.788,3810.5,3810.3,0.05042056]
[1717757424644,0.788,3810.5,3810.2,0.55116773]
[1717757424817,0.788,3810.5,3810.4,0.050406]
[1717757425449,0.788,3810.5,3810.1,0.55116773]
[1717757425611,0.788,3810.5,3810.4,0.050406]
[1717757426151,0.788,3810.5,3810.1,0.55116773]
[1717757426314,0.788,3810.5,3810.4,0.050406]
[1717757426514,0.788,3810.5,3810.1,0.55116773]
[1717757426738,0.788,3810.5,3810.2,0.05041204]
[1717757429516,0.788,3810.5,3810.0,0.55116773]
[1717757429829,0.788,3810.5,3810.3,0.05058203]
[1717757430025,0.788,3810.5,3810.0,0.55116773]
[1717757430245,0.788,3810.5,3810.4,0.05057517]
[1717757430413,0.788,3810.5,3810.0,0.55116773]